[Event "SixDays Budapest March IM 2023"]
[Site "Budapest"]
[Date "2023.03.27"]
[Round "5.3"]
[White "Szeberenyi, Adam"]
[Black "Balogh, Peter"]
[Result "1-0"]
[ECO "A65"]
[WhiteElo "2338"]
[BlackElo "2264"]
[Annotator "TA"]
[PlyCount "51"]
[EventDate "2023.03.24"]
[EventType "tourn"]
[EventCountry "HUN"]
[SourceTitle "playchess.com"]
[Source "ChessBase"]
[SourceQuality "1"]
[TimeControl "5400+30"]

{[%evp 29,51,5,15,13,18,15,10,12,35,36,118,8,12,0,0,0,78,83,234,111,560,555,1295,1285]} 1. d4 {[%emt 0:00:33]} Nf6 {[%emt 0:03:59]} 2. c4 {[%emt 0:01:07]} c5 {[%emt 0:02:48]} 3. d5 {[%emt 0:00:17]} e6 {[%emt 0:00:26]} 4. Nc3 {[%emt 0:00:14]} exd5 {[%emt 0:00:08]} 5. cxd5 {[%emt 0:00:04]} d6 {[%emt 0:00:09]} 6. e4 {[%emt 0:00:57]} g6 {[%emt 0:00:11]} 7. h3 {[%emt 0:00:33]} Bg7 {[%emt 0:00:49]} 8. Bd3 {[%emt 0:00:15]} O-O {[%emt 0:00:49]} 9. Nf3 {[%emt 0:00:02][%cal Bg1f3,Bf3d2,Bd2c4][%mdl 32]} b5 {[%emt 0:01:03]} 10. Bxb5 {[%emt 0:02:34]} Nxe4 {[%emt 0:04:32]} 11. Nxe4 {[%emt 0:00:03]} Qa5+ {[%emt 0:00:12]} 12. Nfd2 {[%emt 0:00:03]} Qxb5 {[%emt 0:00:37]} 13. Nxd6 {[%emt 0:00:04]} Qa6 {[%emt 0:00:49]} 14. N2c4 {[%emt 0:00:04]} Nd7 {[%emt 0:01:22]} 15. O-O {[%emt 0:00:11]} Ne5 {[%emt 0:01:33]} 16. Nxc8 {[%emt 0:00:48] A70: Modern Benoni: 6 e4 g6 7 Nf3.} Raxc8 {[%emt 0:02:20]} 17. Nxe5 {[%emt 0:00:33]} Bxe5 {[%emt 0:00:09]} 18. Re1 {[%emt 0:03:04] The position is equal. 18.Qf3 is the hot move.} Qf6 {[%emt 0:06:27]} 19. Bh6 {[%emt 0:31:25]} Rfe8 {[%emt 0:18:16]} (19... Bd4 $14 20. Re2 Rfe8 21. Rxe8+ Rxe8) 20. Qg4 {[%emt 0:03:26]} ({White should try} 20. Qa4 $16) 20... Bxb2 $11 {[%emt 0:05:00] [#]} 21. Rxe8+ $146 {[%emt 0:19:16]} ({Predecessor:} 21. Rad1 Bd4 22. Kh1 Qxf2 23. Rf1 f5 24. Qg5 Qe2 25. Qg3 Qe5 26. Qb3 Rb8 27. Qc4 {0-1 Li,W (2422)-Zhang,Z (2209) Jinan Torch Cup 2005 (2)}) 21... Rxe8 {[%emt 0:00:20]} 22. Qa4 $40 {[%emt 0:02:30][%csl LRa7,LRe8][%cal Ra4e8][%mdl 128] [#] White is up to no good.} Re2 {[%emt 0:16:45]} (22... Qe5 $11 {keeps the balance.} 23. Rb1 Bd4) 23. Rf1 $16 {[%emt 0:03:50] And now Qb5 would win.} Qe7 $2 {[%emt 0:08:26]} (23... Re7 $16 {keeps fighting.}) 24. Qb5 {[%emt 0:04:12]} (24. Qc6 $18 {and White stays clearly on top.} Qe8 25. Qxc5) 24... Bg7 $2 {[%emt 0:12:53][%mdl 8192] [#]} (24... Be5 $16 {is tougher.}) 25. d6 $1 $18 {[%emt 0:01:17][%cal Bd5d6,Bd6d7][%mdl 544]} Qe6 {[%emt 0:02:07]} (25... Qe5 26. d7) 26. d7 {[%emt 0:01:02] Weighted Error Value: White=0.22 (precise) /Black=0.95} 1-0

[Event "SixDays Budapest March IM 2023"]
[Site "Budapest"]
[Date "2023.03.27"]
[Round "5.4"]
[White "Udvardi, Zalan"]
[Black "Halak, Miklos"]
[Result "1-0"]
[ECO "B13"]
[WhiteElo "2260"]
[BlackElo "2257"]
[Annotator "TA"]
[PlyCount "113"]
[EventDate "2023.03.24"]
[EventType "tourn"]
[EventCountry "HUN"]
[SourceTitle "playchess.com"]
[Source "ChessBase"]
[SourceQuality "1"]
[TimeControl "5400+30"]

{[%evp 22,113,34,6,6,6,6,6,7,-11,-11,-14,-16,-19,-7,-27,-20,-37,45,56,50,39,50,42,52,43,88,48,100,92,117,101,224,216,216,150,187,195,254,267,264,278,261,240,268,263,339,270,349,104,108,36,57,0,0,0,0,0,0,-8,0,0,11,12,212,211,209,208,195,183,216,213,981,894,1150,1126,1015,750,29955,29952,29953,5611,29958,29953,29964,29967,29967,29968,29965,29966,29965,29967,29942,29942]} 1. e4 {[%emt 0:08:21]} c6 {[%emt 0:00:34]} 2. d4 {[%emt 0:00:12]} d5 {[%emt 0:00:04]} 3. exd5 {[%emt 0:00:15]} cxd5 {[%emt 0:00:05]} 4. Bd3 {[%emt 0:00:11]} Nc6 {[%emt 0:00:07]} 5. c3 {[%emt 0:00:05]} Nf6 {[%emt 0:00:05]} 6. Bf4 {[%emt 0:00:05]} Bg4 {[%emt 0:00:12]} 7. Qb3 {[%emt 0:00:33]} Qd7 {[%emt 0:01:02]} 8. Nd2 {[%emt 0:00:07]} e6 {[%emt 0:00:10]} 9. Ngf3 {[%emt 0:00:05]} Bd6 {[%emt 0:00:42]} 10. Bg3 {[%emt 0:00:16]} Bxf3 {[%emt 0:03:38]} 11. Nxf3 {[%emt 0:00:07]} O-O {[%emt 0:01:49]} 12. O-O {[%emt 0:00:16]} Bxg3 {[%emt 0:00:42] B13: Caro-Kann: Exchange Variation and Panov-Botvinnik Attack.} 13. hxg3 {[%emt 0:02:39]} Qc7 {[%emt 0:07:21]} 14. Rae1 {[%emt 0:00:17]} Rab8 {[%emt 0:04:49] The position is equal.} 15. Ne5 {[%emt 0:09:49] [#]} Nxe5 $146 {[%emt 0:07:29]} ({Predecessor:} 15... b5 16. f4 b4 17. Qc2 bxc3 18. bxc3 Rfc8 19. Qd2 Qa5 20. Rf2 Rc7 21. Re3 Rbc8 {0-1 Gazis,E (2141)-Zhuravlev,A (2359) Titled Tuesday intern op 23rd Nov blitz 2021 (8)}) 16. Rxe5 {[%emt 0:00:42] [#]} b5 $1 {[%emt 0:00:54]} 17. a3 {[%emt 0:00:20]} (17. Bxb5 $2 a6 18. Rc1 Ne4 $19) 17... a5 {[%emt 0:01:02]} 18. Bxb5 {[%emt 0:11:58]} Ne4 {[%emt 0:00:24] ...Nd2 would be deadly.} 19. Re1 {[%emt 0:02:19]} Qb6 {[%emt 0:02:55]} (19... Nd6 $15 20. a4 Rb7) 20. R1xe4 $14 {[%emt 0:11:34]} (20. a4 Nd6 $11) 20... dxe4 {[%emt 0:00:44]} 21. a4 {[%emt 0:00:07]} Rfd8 {[%emt 0:08:07]} 22. Rxe4 {[%emt 0:04:33]} Rd5 {[%emt 0:04:11]} 23. Qd1 {[%emt 0:04:33]} Rbd8 {[%emt 0:02:44]} 24. Qe2 {[%emt 0:00:23]} Qc7 {[%emt 0:06:28]} (24... h5 $14) 25. Bc4 {[%emt 0:07:01]} Rf5 {[%emt 0:08:07]} 26. d5 {[%emt 0:05:01]} e5 {[%emt 0:09:11]} (26... Kh8 $16 {was called for.}) 27. g4 $18 {[%emt 0:02:30]} Rg5 {[%emt 0:01:34]} 28. Qe3 {[%emt 0:08:44]} h6 {[%emt 0:00:39]} 29. b4 $1 {[%emt 0:01:24]} axb4 {[%emt 0:04:12]} (29... Kf8 {might work better.} 30. Qc5+ Qe7 31. Qxa5 h5 32. gxh5 Rxh5) 30. cxb4 {[%emt 0:00:07]} Qd7 {[%emt 0:00:23] Black is weak on the light squares} 31. b5 {[%emt 0:03:50] And now a5 would win.} (31. Rxe5 Qxa4 32. Rxg5 hxg5 33. Qxg5 Rc8 $17) 31... Ra8 {[%emt 0:03:07]} 32. Bb3 {[%emt 0:01:53]} (32. Rxe5 Rxa4 33. Re8+ Kh7 $11) 32... Rxg4 {[%emt 0:01:38]} 33. Rxe5 {[%emt 0:01:55][%cal Od5d6]} Rb4 {[%emt 0:09:45]} 34. Bc2 {[%emt 0:01:33]} Rf8 {[%emt 0:08:04]} 35. Qc5 {[%emt 0:01:56] Repels Qd6} (35. Qd3 $18 {[%csl Gc2][%cal Rd3h7] has better winning chances.} g6 36. d6) 35... Qg4 $16 {[%emt 0:00:29]} 36. Re1 {[%emt 0:02:14] White is more active.} ({But not} 36. Bh7+ $2 Kxh7 37. Re1 (37. Qxf8 $2 {leads to mate.} Rb1+) 37... Rc8 $19) ({Better is} 36. Qc3 $1 $16) 36... g6 $14 {[%emt 0:00:59]} 37. Qe7 {[%emt 0:00:52]} (37. Bd1 $1 $14 Qf4 38. Qc3) 37... Rb2 $1 $11 {[%emt 0:01:10]} 38. Qe4 {[%emt 0:04:12] The board is on fire.} Qc8 {[%emt 0:01:28]} 39. Bd1 {[%emt 0:04:27][%cal Bc2d1,Bd1f3,Bf3d5][%mdl 32]} Qc5 {[%emt 0:00:23] Against Qd4} 40. Qe3 {[%emt 0:01:04]} Qxd5 {[%emt 0:00:28]} 41. Bf3 $36 {[%emt 0:00:33][%mdl 2048] White has some pressure.} Qa2 {[%emt 0:01:03]} 42. Qd4 {[%emt 0:01:09] Black must now prevent b6.} Qa3 $2 {[%emt 0:00:49] Black is now going downhill.} (42... Rd2 $1 $11 {and Black stays safe.} 43. Ra1 Qc2) 43. Bd5 $18 {[%emt 0:00:55]} Qb4 {[%emt 0:00:57] [#]} 44. Qxb4 {[%emt 0:00:47]} Rxb4 {[%emt 0:00:04][%mdl 4096] Endgame [#] KRR-KRB} 45. Ra1 {[%emt 0:00:27]} Rd8 {[%emt 0:00:57]} 46. Bc6 {[%emt 0:00:07] Hoping for a5.} Rdd4 $2 {[%emt 0:00:34]} (46... Rb8 47. a5 R8xb5) 47. a5 {[%emt 0:00:07]} Ra4 {[%emt 0:00:09]} 48. Rxa4 {[%emt 0:00:04]} Rxa4 {[%emt 0:00:04] KR-KB} 49. a6 {[%emt 0:00:08] Threatening mate with Bb7.} Kf8 {[%emt 0:00:28]} 50. Bb7 {[%emt 0:00:08]} Ke7 {[%emt 0:00:45]} 51. b6 {[%emt 0:00:30] White wants to mate with a7.} Kd6 {[%emt 0:00:08]} 52. a7 {[%emt 0:00:11] White mates.} Kc5 {[%emt 0:00:09]} 53. a8=Q {[%emt 0:00:10]} ({Worse is} 53. a8=B Kxb6 54. g3 h5 $11) 53... Rxa8 {[%emt 0:00:02]} 54. Bxa8 {[%emt 0:00:08]} Kxb6 {[%emt 0:00:03]} 55. Bd5 {[%emt 0:00:14]} f6 {[%emt 0:00:04]} 56. Bf7 {[%emt 0:00:18]} g5 {[%emt 0:00:04]} 57. g4 {[%emt 0:00:08] Weighted Error Value: White=0.17 (very precise) /Black=0.45} 1-0

[Event "SixDays Budapest March IM 2023"]
[Site "Budapest"]
[Date "2023.03.27"]
[Round "5.5"]
[White "Ulasevich, Sergei"]
[Black "Gandhi, Anish"]
[Result "0-1"]
[ECO "B53"]
[WhiteElo "2236"]
[BlackElo "2187"]
[Annotator "TA"]
[PlyCount "96"]
[EventDate "2023.03.24"]
[EventType "tourn"]
[EventCountry "HUN"]
[SourceTitle "playchess.com"]
[Source "ChessBase"]
[SourceQuality "1"]
[TimeControl "5400+30"]

{[%evp 14,96,23,23,20,10,15,0,-10,-5,-5,-22,-14,-19,-19,-57,-57,-57,-64,-73,-49,-62,-62,-62,-62,-57,0,0,0,3,9,0,0,0,0,-20,-12,-20,-27,-51,-51,-46,-54,-93,-95,-93,-20,-33,-25,-58,-58,-56,-5,-5,-5,-47,-3,-7,0,0,0,0,0,0,0,0,0,0,0,0,0,0,0,0,0,-29956,-29953,-5631,-5431,-29975,-29976,-29977,-29978,-29978,-29978]} 1. e4 {[%emt 0:00:39]} c5 {[%emt 0:00:38]} 2. Nf3 {[%emt 0:00:31]} d6 {[%emt 0:00:04]} 3. d4 {[%emt 0:00:39]} cxd4 {[%emt 0:00:08]} 4. Qxd4 {[%emt 0:00:02]} Nc6 {[%emt 0:00:29]} 5. Bb5 {[%emt 0:00:07]} Bd7 {[%emt 0:02:31]} 6. Bxc6 {[%emt 0:00:08]} bxc6 {[%emt 0:03:07]} 7. c4 {[%emt 0:00:13]} c5 {[%emt 0:01:26]} 8. Qd3 {[%emt 0:01:09]} g6 {[%emt 0:01:09] B53: Sicilian: 2...d6: Lines with Qxd4.} 9. Bd2 {[%emt 0:19:38]} Bg7 {[%emt 0:01:07]} 10. Bc3 {[%emt 0:00:02]} Nf6 {[%emt 0:00:10] The position is equal.} 11. O-O {[%emt 0:00:07] [#]} O-O $146 {[%emt 0:00:39]} ({Predecessor:} 11... Rb8 12. Re1 Qc7 13. e5 Bf5 14. Qd1 dxe5 15. Bxe5 Qb6 16. Bxb8 Qxb8 17. Qb3 Qc7 {1-0 Moenius,A (1731)-Bauschke,N (1655) Oberfranken-ch 2015 (1)}) 12. Na3 {[%emt 0:19:13]} Bc6 {[%emt 0:02:41]} 13. Rfe1 {[%emt 0:00:05]} Qd7 {[%emt 0:03:16]} 14. e5 {[%emt 0:03:59]} Nh5 {[%emt 0:02:02] Strongly threatening ...Nf4.} 15. Qe3 {[%emt 0:08:51] Dodges Nf4} Qf5 {[%emt 0:08:51]} 16. exd6 {[%emt 0:02:47] [#] Bxg7 would be deadly.} exd6 {[%emt 0:05:11]} (16... Bxc3 {simplifies} 17. Qxc3 exd6 18. Qc2 Qf6) 17. Qg5 {[%emt 0:03:47]} Qxg5 {[%emt 0:13:19]} ({Of course not} 17... Bxf3 18. Qxf5 gxf5 19. gxf3 $11) 18. Nxg5 {[%emt 0:00:06]} Bxc3 {[%emt 0:00:08]} 19. bxc3 {[%emt 0:00:05]} Nf4 {[%emt 0:00:06]} (19... h6 $15 20. Nh3 Rab8) 20. g3 $1 $11 {[%emt 0:08:52]} Nd3 {[%emt 0:09:29]} 21. Red1 {[%emt 0:01:42]} Ne5 {[%emt 0:00:27]} 22. f4 {[%emt 0:03:59]} Nf3+ {[%emt 0:03:07]} 23. Nxf3 {[%emt 0:00:11]} Bxf3 {[%emt 0:00:03][%cal Bc6f3,Bf3g4,Bg4f5][%mdl 32]} 24. Rxd6 {[%emt 0:00:14]} Rfe8 {[%emt 0:00:04] Black wants to play ...Re2.} 25. Kf2 {[%emt 0:02:00]} Bg4 $36 {[%emt 0:00:06][%mdl 2048] And now ...Re2+ would win. White is under pressure.} 26. Rd2 {[%emt 0:00:41] Prevents Re2+} Rad8 $1 {[%emt 0:00:55]} 27. Rxd8 {[%emt 0:02:30]} Rxd8 $15 {[%emt 0:00:06][%mdl 4096] Endgame KRB-KRN} 28. Ke3 {[%emt 0:00:59] Inhibits Rd2.} Re8+ {[%emt 0:03:30][%mdl 1024] Black has strong compensation.} 29. Kd3 {[%emt 0:00:20]} Bf5+ {[%emt 0:00:05]} (29... Re6 $17) 30. Kd2 {[%emt 0:00:09]} Rd8+ {[%emt 0:00:10]} 31. Ke2 {[%emt 0:00:19]} a6 {[%emt 0:01:29]} 32. Re1 {[%emt 0:02:47]} h5 {[%emt 0:03:38]} (32... Kg7 $15) 33. Kf2 $1 $11 {[%emt 0:03:44]} Kg7 {[%emt 0:00:46]} 34. Re2 {[%emt 0:04:10]} Rd1 {[%emt 0:01:42]} (34... Bg4 $5 {[%cal Rg4e2]} 35. Rc2 Rd1 $15) 35. Re1 $1 {[%emt 0:03:57]} Rxe1 {[%emt 0:01:42]} 36. Kxe1 {[%emt 0:00:01] KB-KN} Kf6 {[%emt 0:00:11]} 37. Kd2 {[%emt 0:00:04]} g5 {[%emt 0:00:42] aiming for ...gxf4.} 38. Ke3 {[%emt 0:00:26]} Kg6 {[%emt 0:10:50]} 39. Kf3 {[%emt 0:00:12]} gxf4 {[%emt 0:02:38]} 40. Kxf4 {[%emt 0:01:44]} Kf6 {[%emt 0:00:05]} 41. h3 {[%emt 0:03:13]} Bd3 {[%emt 0:02:45]} 42. Ke3 {[%emt 0:00:12]} Bg6 {[%emt 0:00:37]} 43. Kf4 $1 {[%emt 0:00:02]} Bf5 {[%emt 0:00:28]} 44. Nb5 $2 {[%emt 0:01:26][%mdl 8192] [#]} axb5 {[%emt 0:00:43]} 45. cxb5 {[%emt 0:00:01]} Bxh3 {[%emt 0:00:11]} 46. b6 {[%emt 0:00:29]} Bg2 {[%emt 0:01:58] Black mates.} 47. a4 {[%emt 0:00:04]} Bb7 {[%emt 0:00:18]} 48. a5 {[%emt 0:00:01]} c4 {[%emt 0:00:38] Weighted Error Value: White=0.43/Black=0.08 (flawless)} 0-1

[Event "SixDays Budapest March IM 2023"]
[Site "Budapest"]
[Date "2023.03.27"]
[Round "6.1"]
[White "Pham, Tran Gia Phuc"]
[Black "Gandhi, Anish"]
[Result "1-0"]
[ECO "D02"]
[WhiteElo "2238"]
[BlackElo "2187"]
[Annotator "TA"]
[PlyCount "125"]
[EventDate "2023.03.24"]
[EventType "tourn"]
[EventCountry "HUN"]
[SourceTitle "playchess.com"]
[Source "ChessBase"]
[SourceQuality "1"]
[TimeControl "5400+30"]

{[%evp 11,125,0,6,6,6,10,3,1,10,13,19,0,0,0,2,-47,-12,-9,7,0,32,-45,-54,-49,-39,-49,0,0,0,-177,-183,-170,-87,-213,-215,-257,-237,-230,-105,-89,-57,-39,0,0,0,0,0,0,0,0,0,0,0,-13,-8,-40,0,-12,-4,-6,-6,-6,0,0,0,-16,-11,-11,-11,-21,0,0,0,0,0,0,0,0,0,0,0,0,83,79,56,70,80,79,70,91,86,0,0,0,215,205,203,150,373,330,660,615,1232,984,892,764,5834,2407,12841,12841,12839,12839,12844,12845,29989,12847]} 1. d4 {[%emt 0:00:31]} Nf6 {[%emt 0:03:31]} 2. Nf3 {[%emt 0:00:07]} d5 {[%emt 0:00:08]} 3. Bf4 {[%emt 0:00:05]} c5 {[%emt 0:00:10]} 4. e3 {[%emt 0:00:03]} Nc6 {[%emt 0:00:09]} 5. Nbd2 {[%emt 0:00:04]} e6 {[%emt 0:00:09]} 6. c3 {[%emt 0:00:03]} Nh5 {[%emt 0:00:05]} 7. Bg5 {[%emt 0:00:04] D02: 1 d4 d5 2 Nf3 sidelines, including 2...Nf6 3 g3 and 2...Nf6 3 Bf4.} f6 {[%emt 0:00:13]} 8. Bh4 {[%emt 0:00:03]} g6 {[%emt 0:00:42]} 9. Bd3 {[%emt 0:01:38][%cal Of3e5] The position is equal. 9.Bd3 scores better than 9.Be2.} cxd4 {[%emt 0:00:19]} 10. cxd4 {[%emt 0:00:05][%cal Of3e5]} Bd6 {[%emt 0:00:11] Prevents Ne5.} 11. O-O {[%emt 0:00:06]} O-O {[%emt 0:00:16]} 12. Rc1 {[%emt 0:01:06]} Bd7 {[%emt 0:00:22] [#]} 13. e4 $146 {[%emt 0:00:22]} (13. g4 $11 {might be stronger.} g5 14. gxh5 gxh4 15. Kh1) ({Predecessor:} 13. a3 Rc8 14. Rc3 Qb6 15. Qb1 Ne7 16. Rxc8 Bxc8 17. Rc1 Nf5 18. Bg3 Nhxg3 19. hxg3 Bd7 20. Rc3 Rc8 21. Rb3 Qc7 22. Rc3 Qb6 23. Rb3 Qc7 24. Rc3 {½-½ Svane,R (2637)-Sarana,A (2685) Bundesliga 2122 2022 (3.6)}) 13... Nf4 {[%emt 0:06:05]} 14. Bb1 {[%emt 0:00:13]} g5 {[%emt 0:03:05] Dodges g3} (14... Qb6 $5 {[%cal Rb6b2]}) 15. Bg3 {[%emt 0:01:21]} g4 {[%emt 0:11:40] [#]} 16. e5 {[%emt 0:03:46]} gxf3 $15 {[%emt 0:12:40]} 17. exd6 {[%emt 0:02:10]} Ne2+ {[%emt 0:03:53]} (17... Nxg2 $2 18. Nxf3 Qe8 19. Kxg2 $18) 18. Kh1 {[%emt 0:00:04][%cal Od2f3]} fxg2+ {[%emt 0:00:32]} (18... Nexd4 19. Nxf3 Nxf3 20. Qxf3 $14) (18... Nxc1 $15 19. Qxf3 f5) 19. Kxg2 $11 {[%emt 0:00:06]} Nxc1 {[%emt 0:00:03] Excellent horsemanship.} 20. Qh5 {[%emt 0:03:36] [#] Prevents Rf7} (20. Bxh7+ $1 $11 {and White has nothing to worry.} Kxh7 21. Qh5+ Kg8 22. Qg4+ Kf7 23. Qh5+ Kg8 24. Qg4+ Kh8 25. Qh5+ Kg8) 20... Rf7 $1 {[%emt 0:01:47][%cal Oc1a2]} 21. Rxc1 {[%emt 0:00:24]} e5 {[%emt 0:02:58] Prevents Bf4.} (21... Nxd4 22. Qg4+ Kh8 23. Qxd4 $16) (21... Qf8 $19 {Threatens to win with ...Rg7.} 22. Kh1 Rg7) 22. Kh1 {[%emt 0:02:30] [#]} (22. dxe5 $17 {is a better defense.} fxe5 23. Rxc6 {[%mdl 64] Remove Defender} Bxc6 24. Bxe5) 22... Rg7 $1 $19 {[%emt 0:04:02]} (22... exd4 23. Rg1 Rg7 24. Bh4 (24. Qxd5+ Kh8 $17) 24... Rxg1+ 25. Kxg1 $18) 23. Bh4 {[%emt 0:13:43]} Be8 {[%emt 0:12:00]} (23... Nxd4 24. Rg1 Rxg1+ 25. Kxg1 $14) 24. Qf5 {[%emt 0:10:00]} Nxd4 {[%emt 0:07:38]} (24... exd4 25. Bxf6 (25. Qxf6 $2 Qxf6 26. Bxf6 Rd7 $19) 25... Qd7 26. Qxd5+ Qf7 27. Qf3 $16) (24... Qxd6 $19 {is more deadly. Strongly threatening ...e4.} 25. Qxf6 Qb4) 25. Qxf6 $17 {[%emt 0:00:27] [#]} Rc8 {[%emt 0:02:45]} 26. Re1 {[%emt 0:03:50]} Qd7 {[%emt 0:10:47]} 27. Bg3 $1 {[%emt 0:07:13] Really sharp!} (27. Qxe5 Qg4 28. Bg3 (28. Qxd5+ $2 Kh8 $19) 28... Bc6 $17) 27... Qg4 {[%emt 0:03:43]} 28. f3 {[%emt 0:01:42]} Qg5 {[%emt 0:04:39]} 29. Qxg5 {[%emt 0:00:36]} Rxg5 {[%emt 0:00:02]} 30. Bxe5 {[%emt 0:00:08]} Nc6 {[%emt 0:06:13]} 31. f4 {[%emt 0:02:48]} Rh5 {[%emt 0:00:01]} 32. Rg1+ {[%emt 0:05:29]} Kf8 {[%emt 0:00:01]} 33. Bf6 {[%emt 0:00:08]} (33. Nf3 $5 {[%cal Rf3g5]}) 33... Bg6 {[%emt 0:02:26]} 34. d7 {[%emt 0:03:51]} Rb8 {[%emt 0:00:13]} 35. Bxg6 {[%emt 0:01:19]} hxg6 {[%emt 0:00:02]} 36. Rc1 {[%emt 0:00:14][%cal Oc1c6]} (36. Rxg6 Kf7 37. Rg5 Rh7 $17) 36... Rf5 {[%emt 0:02:03][%csl LRf4,LRf6]} 37. Rxc6 {[%emt 0:00:07]} bxc6 {[%emt 0:00:05]} 38. d8=Q+ {[%emt 0:00:05]} Rxd8 {[%emt 0:00:03]} 39. Bxd8 {[%emt 0:00:08]} Rxf4 {[%emt 0:00:06]} 40. Bg5 {[%emt 0:01:06]} Rf5 {[%emt 0:00:40][%mdl 1024] Black has compensation.} (40... Ra4 $5 {[%cal Ra4a2]}) 41. Be3 {[%emt 0:00:07]} Re5 {[%emt 0:01:38]} 42. Nf1 {[%emt 0:03:46]} a6 {[%emt 0:00:05]} 43. Kg2 {[%emt 0:00:04]} Kf7 {[%emt 0:00:15]} 44. Kf3 {[%emt 0:00:28]} Rh5 {[%emt 0:01:18]} 45. Kg4 {[%emt 0:01:03]} Ke6 {[%emt 0:00:33]} 46. Bd4 {[%emt 0:01:38]} Kd6 {[%emt 0:01:00]} (46... Rh7 $11) 47. b4 $16 {[%emt 0:00:14]} a5 {[%emt 0:01:26]} 48. a3 {[%emt 0:01:35]} ({Much worse is} 48. bxa5 c5 49. Be3 Kc6 $15) (48. Bc5+ Ke6 49. a3 (49. bxa5 d4 $14) 49... axb4 50. axb4 Ke5 $11) 48... axb4 {[%emt 0:00:04]} 49. axb4 {[%emt 0:00:04]} Ke6 {[%emt 0:00:44]} 50. h4 {[%emt 0:00:07] White is more active.} Rh7 {[%emt 0:00:28]} 51. Nd2 {[%emt 0:01:11]} (51. Ng3 $16) 51... Rb7 $11 {[%emt 0:00:18]} 52. Bc5 {[%emt 0:00:06] Black must now prevent Nf3.} Kf7 $2 {[%emt 0:00:44]} (52... d4 $1 $11 {and Black is okay.}) 53. Kf4 $18 {[%emt 0:00:24]} Rb8 {[%emt 0:00:26]} 54. Ke5 {[%emt 0:00:21]} Rd8 $2 {[%emt 0:01:14]} (54... d4 $16 55. Nf3 (55. Kxd4 Rd8+ 56. Ke3 Ke6 $16) (55. Bxd4 Rxb4 56. Nf3 Kg7 $11) 55... d3) 55. Nf3 {[%emt 0:00:05]} Re8+ $2 {[%emt 0:00:48]} (55... d4 56. Nxd4 (56. Bxd4 Rd5+ 57. Ke4 Rh5 $18) 56... Rd5+ 57. Kf4 Rh5) 56. Kd6 {[%emt 0:00:06]} Re6+ {[%emt 0:00:09]} 57. Kd7 {[%emt 0:00:07] And now Ng5+ would win.} Rf6 {[%emt 0:00:37]} 58. Ne5+ {[%emt 0:00:19]} Kg8 {[%emt 0:00:05]} 59. Nxc6 {[%emt 0:00:04]} Rf4 {[%emt 0:00:08]} 60. b5 {[%emt 0:00:08][%cal Bb4b5,Bb5b6,Bb6b7][%mdl 32]} d4 {[%emt 0:00:38]} 61. b6 {[%emt 0:00:21]} d3 {[%emt 0:00:37]} 62. b7 {[%emt 0:00:05]} Rf7+ {[%emt 0:00:06]} 63. Ne7+ {[%emt 0:00:04] White used his chance. An entertaining game by Pham.   Weighted Error Value: White=0.17 (very precise) /Black=0.42} 1-0